[Event "DFMMLV 2019"]
[Site "Braunfels"]
[Date "2019.06.23"]
[Round "5.26"]
[White "Mucha, Annegret"]
[Black "Plass, Mariana-Camelia"]
[Result "0-1"]
[ECO "B23"]
[WhiteElo "2050"]
[BlackElo "2042"]
[Annotator "NA"]
[PlyCount "100"]
[EventDate "2019.06.20"]
[EventType "team-tourn"]
[EventCountry "GER"]
[SourceTitle "playchess.com"]
[Source "ChessBase"]
[SourceQuality "1"]
[WhiteTeam "Thueringen"]
[BlackTeam "NRW"]
[TimeControl "40/5400+30:1800+30"]

1. e4 {[%emt 0:00:00]} c5 {[%emt 0:00:00]} 2. Nc3 {[%emt 0:00:04]} g6 {[%emt 0:00:01]} 3. f4 {[%emt 0:00:35]} Bg7 {[%emt 0:00:10]} 4. Nf3 {[%emt 0:00:07]} Nc6 {[%emt 0:00:15]} 5. Bc4 {[%emt 0:01:29]} d6 {[%emt 0:01:21]} 6. O-O {[%emt 0:03:08]} e6 {[%emt 0:00:16]} 7. d3 {[%emt 0:00:16]} Nge7 {[%emt 0:00:13]} 8. Qe1 {[%emt 0:00:46]} a6 {[%emt 0:01:16]} 9. a4 {[%emt 0:00:27]} O-O {[%emt 0:01:13]} 10. Qh4 {[%emt 0:04:03]} Nd4 {[%emt 0:00:32]} 11. f5 {[%emt 0:05:37]} Nxf3+ {[%emt 0:01:21]} 12. Rxf3 {[%emt 0:01:28]} gxf5 {[%emt 0:06:39]} 13. Rh3 {[%emt 0:02:06]} f6 {[%emt 0:00:06]} 14. Qxh7+ {[%emt 0:01:10]} Kf7 {[%emt 0:00:01]} 15. Bh6 {[%emt 0:07:25]} Rg8 {[%emt 0:00:04]} 16. exf5 {[%emt 0:04:42]} d5 {[%emt 0:01:45]} 17. Bxg7 {[%emt 0:03:38]} Rxg7 {[%emt 0:00:27]} 18. Qh5+ {[%emt 0:00:06]} Kf8 {[%emt 0:00:24]} 19. Qh8+ {[%emt 0:01:37]} Ng8 {[%emt 0:00:30]} 20. Bb3 {[%emt 0:00:28]} c4 {[%emt 0:01:55]} 21. dxc4 {[%emt 0:17:52]} dxc4 {[%emt 0:00:17]} 22. Ba2 {[%emt 0:00:21]} Qb6+ {[%emt 0:03:08]} 23. Kh1 {[%emt 0:00:36]} Qxb2 {[%emt 0:00:09]} 24. Rd1 {[%emt 0:00:08]} Bd7 {[%emt 0:06:43]} 25. Rh7 {[%emt 0:03:57]} Rxh7 {[%emt 0:06:24]} 26. Qxh7 {[%emt 0:00:16]} Qxc3 {[%emt 0:06:40]} 27. Qxd7 {[%emt 0:00:22]} Qxc2 {[%emt 0:03:18]} 28. fxe6 {[%emt 0:00:58]} Ne7 {[%emt 0:00:04]} 29. Qd4 {[%emt 0:04:36]} Kg8 {[%emt 0:20:55]} 30. Bb1 {[%emt 0:06:36]} Qe2 {[%emt 0:03:49]} 31. Be4 {[%emt 0:08:15]} c3 {[%emt 0:08:22]} 32. Bf3 {[%emt 0:03:37]} Qe5 {[%emt 0:05:28]} 33. Qxe5 {[%emt 0:02:02]} fxe5 {[%emt 0:00:04]} 34. Rc1 {[%emt 0:00:28]} Rc8 {[%emt 0:09:19]} 35. Bxb7 {[%emt 0:01:26]} Rc4 {[%emt 0:00:37]} 36. Bxa6 {[%emt 0:03:56]} Rxa4 {[%emt 0:00:48]} 37. Bb7 {[%emt 0:00:45]} Rb4 {[%emt 0:01:15]} 38. h3 {[%emt 0:01:31]} Rxb7 {[%emt 0:01:09]} 39. Rxc3 {[%emt 0:00:02]} Rb6 {[%emt 0:01:04]} 40. Kg1 {[%emt 0:06:07]} Rxe6 {[%emt 0:00:07]} 41. Kf2 {[%emt 0:30:14]} Kf7 {[%emt 0:30:37]} 42. g4 {[%emt 0:00:23]} Kg6 {[%emt 0:04:22]} 43. h4 {[%emt 0:03:14]} Nd5 {[%emt 0:02:52]} 44. Ra3 {[%emt 0:03:39]} e4 {[%emt 0:01:12]} 45. Ra5 {[%emt 0:00:00]} e3+ {[%emt 0:00:00]} 46. Ke1 {[%emt 0:00:00]} Nf4 {[%emt 0:00:00]} 47. Rg5+ {[%emt 0:00:00]} Kh6 {[%emt 0:00:00]} 48. Rf5 {[%emt 0:00:00]} Re4 {[%emt 0:00:00]} 49. g5+ {[%emt 0:00:00]} Kh5 {[%emt 0:00:00]} 50. Rf6 {[%emt 0:00:00]} e2 {[%emt 0:00:00]} 0-1

[Event "DFMMLV 2019"]
[Site "Braunfels"]
[Date "2019.06.23"]
[Round "5.27"]
[White "Sokalska, Viktorija"]
[Black "Skibbe, Diana"]
[Result "0-1"]
[ECO "C47"]
[WhiteElo "1961"]
[BlackElo "1986"]
[Annotator "NA"]
[PlyCount "48"]
[EventDate "2019.06.20"]
[EventType "team-tourn"]
[EventCountry "GER"]
[SourceTitle "playchess.com"]
[Source "ChessBase"]
[SourceQuality "1"]
[WhiteTeam "NRW"]
[BlackTeam "Thueringen"]
[TimeControl "40/5400+30:1800+30"]

1. e4 {[%emt 0:00:00]} e5 {[%emt 0:00:00]} 2. Nf3 {[%emt 0:00:00]} Nf6 {[%emt 0:00:00]} 3. Nc3 {[%emt 0:00:09]} Nc6 {[%emt 0:00:00]} 4. Bc4 {[%emt 0:00:23]} Nxe4 {[%emt 0:01:25]} 5. Nxe4 {[%emt 0:11:57]} d5 {[%emt 0:02:29]} 6. Bxd5 {[%emt 0:01:13]} Qxd5 {[%emt 0:00:03]} 7. Nc3 {[%emt 0:01:35]} Qd8 {[%emt 0:00:20]} 8. Qe2 {[%emt 0:06:50]} Bd6 {[%emt 0:01:09]} 9. d3 {[%emt 0:10:28]} O-O {[%emt 0:00:57]} 10. Be3 {[%emt 0:02:22]} f6 {[%emt 0:07:39]} 11. O-O-O {[%emt 0:00:50]} Re8 {[%emt 0:02:17]} 12. Qd2 {[%emt 0:02:12]} Be6 {[%emt 0:02:39]} 13. h3 {[%emt 0:01:50]} Bf8 {[%emt 0:01:43]} 14. d4 {[%emt 0:08:56]} exd4 {[%emt 0:05:55]} 15. Nxd4 {[%emt 0:00:15]} Nxd4 {[%emt 0:00:06]} 16. Qxd4 {[%emt 0:04:59]} c6 {[%emt 0:01:41]} 17. Qxd8 {[%emt 0:02:43]} Raxd8 {[%emt 0:00:11]} 18. Bxa7 {[%emt 0:03:45]} Ra8 {[%emt 0:00:07]} 19. Be3 {[%emt 0:00:32]} Bb4 {[%emt 0:00:15]} 20. Bd2 {[%emt 0:02:47]} Bxc3 {[%emt 0:01:37]} 21. Bxc3 {[%emt 0:00:11]} Rxa2 {[%emt 0:00:21]} 22. Rhe1 {[%emt 0:03:41]} Ra1+ {[%emt 0:00:52]} 23. Kd2 {[%emt 0:00:16]} Rd8+ {[%emt 0:00:03]} 24. Ke2 {[%emt 0:01:38]} Bc4+ {[%emt 0:00:06]} 0-1

[Event "DFMMLV 2019"]
[Site "Braunfels"]
[Date "2019.06.23"]
[Round "5.28"]
[White "Jacke, Corinna"]
[Black "Sokalskaja, Elena"]
[Result "1/2-1/2"]
[ECO "B15"]
[WhiteElo "2001"]
[BlackElo "2014"]
[Annotator "NA"]
[PlyCount "43"]
[EventDate "2019.06.20"]
[EventType "team-tourn"]
[EventCountry "GER"]
[SourceTitle "playchess.com"]
[Source "ChessBase"]
[SourceQuality "1"]
[WhiteTeam "Thueringen"]
[BlackTeam "NRW"]
[TimeControl "40/5400+30:1800+30"]

1. e4 {[%emt 0:00:00]} c6 {[%emt 0:00:00]} 2. d4 {[%emt 0:00:00]} d5 {[%emt 0:00:00]} 3. Nc3 {[%emt 0:00:00]} g6 {[%emt 0:01:14]} 4. e5 {[%emt 0:10:16]} Bg7 {[%emt 0:00:11]} 5. f4 {[%emt 0:00:48]} Nh6 {[%emt 0:00:23]} 6. Nf3 {[%emt 0:01:12]} O-O {[%emt 0:01:45]} 7. Bd3 {[%emt 0:00:44]} f6 {[%emt 0:02:36]} 8. O-O {[%emt 0:08:11]} Nf7 {[%emt 0:05:37]} 9. Ne2 {[%emt 0:02:33]} Qb6 {[%emt 0:07:33]} 10. Kh1 {[%emt 0:04:33]} Na6 {[%emt 0:03:13]} 11. c3 {[%emt 0:03:07]} fxe5 {[%emt 0:06:39]} 12. fxe5 {[%emt 0:01:04]} Nc7 {[%emt 0:03:17]} 13. Qe1 {[%emt 0:07:18]} Ne6 {[%emt 0:03:00]} 14. Qh4 {[%emt 0:01:24]} Qc7 {[%emt 0:01:02]} 15. Nf4 {[%emt 0:09:28]} Nxf4 {[%emt 0:04:40]} 16. Bxf4 {[%emt 0:00:16]} Be6 {[%emt 0:00:16]} 17. Rf2 {[%emt 0:03:23]} Rae8 {[%emt 0:02:55]} 18. Raf1 {[%emt 0:06:20]} Qd7 {[%emt 0:01:23]} 19. Be3 {[%emt 0:08:27]} c5 {[%emt 0:06:03]} 20. h3 {[%emt 0:05:39]} a6 {[%emt 0:00:43]} 21. Kg1 {[%emt 0:09:24]} b6 {[%emt 0:08:45]} 22. Ng5 {[%emt 0:01:54]} 1/2-1/2

[Event "DFMMLV 2019"]
[Site "Braunfels"]
[Date "2019.06.23"]
[Round "5.29"]
[White "Schmidt, Andrea"]
[Black "Dietrich, Mareike"]
[Result "1/2-1/2"]
[ECO "B85"]
[WhiteElo "2006"]
[BlackElo "1706"]
[Annotator "NA"]
[PlyCount "132"]
[EventDate "2019.06.20"]
[EventType "team-tourn"]
[EventCountry "GER"]
[SourceTitle "playchess.com"]
[Source "ChessBase"]
[SourceQuality "1"]
[WhiteTeam "NRW"]
[BlackTeam "Thueringen"]
[TimeControl "40/5400+30:1800+30"]

1. e4 {[%emt 0:00:00]} c5 {[%emt 0:00:00]} 2. Nf3 {[%emt 0:00:36]} d6 {[%emt 0:00:00]} 3. d4 {[%emt 0:01:36]} cxd4 {[%emt 0:00:00]} 4. Nxd4 {[%emt 0:00:14]} Nf6 {[%emt 0:00:00]} 5. Nc3 {[%emt 0:04:17]} a6 {[%emt 0:00:00]} 6. Be2 {[%emt 0:01:32]} e6 {[%emt 0:00:00]} 7. O-O {[%emt 0:00:09]} Nbd7 {[%emt 0:00:40]} 8. Be3 {[%emt 0:05:52]} b5 {[%emt 0:04:21]} 9. a3 {[%emt 0:01:30]} Bb7 {[%emt 0:00:07]} 10. f3 {[%emt 0:04:10] B84: Sicilian Scheveningen: 6 Be2 a6, lines without early Be3} (10. Bd3 Be7 11. Qf3 O-O 12. Qg3 Nc5 13. Bh6 Ne8 14. Bd2 Rc8 15. Rad1 Qc7 16. Rfe1 Nxd3 17. cxd3 Kh8 {0-1 (71) Sevian,S (2556)-Huschenbeth,N (2541) Las Vegas 2015}) 10... Rc8 {[%emt 0:01:20]} 11. Kh1 {[%emt 0:05:05]} d5 $146 {[%emt 0:04:25]} ({Predecessor:} 11... Be7 12. g4 h6 13. Qd2 Ne5 14. b3 Nexg4 15. fxg4 Rxc3 16. Rxf6 Rxe3 17. Rxf7 Rxe4 {0-1 (29) Savic,M (2264)-Djurovic,G (2353) Vukovar 2011}) 12. exd5 {[%emt 0:00:53]} Nxd5 {[%emt 0:04:41]} 13. Nxd5 {[%emt 0:00:09]} Bxd5 {[%emt 0:01:03]} 14. c3 {[%emt 0:06:25]} Nf6 {[%emt 0:04:14]} 15. a4 {[%emt 0:01:07]} e5 {[%emt 0:09:22]} 16. Nc2 {[%emt 0:11:57]} Bb3 {[%emt 0:08:47]} 17. axb5 {[%emt 0:01:22]} Qxd1 {[%emt 0:01:17]} 18. Bxd1 {[%emt 0:00:19]} Bc4 {[%emt 0:03:53]} 19. Re1 {[%emt 0:01:55]} axb5 {[%emt 0:02:53]} 20. Bd4 {[%emt 0:03:50]} Nd7 {[%emt 0:04:42]} 21. Bxe5 {[%emt 0:00:36]} Nxe5 {[%emt 0:01:54]} 22. Rxe5+ {[%emt 0:00:09]} Kd8 {[%emt 0:06:49]} 23. Nd4 {[%emt 0:03:28]} Bd6 {[%emt 0:01:19]} 24. Re1 {[%emt 0:02:38]} Kd7 {[%emt 0:07:08]} 25. Bc2 {[%emt 0:00:47]} Rc5 {[%emt 0:07:04]} 26. g3 {[%emt 0:01:39]} g6 {[%emt 0:01:27]} 27. Ra7+ {[%emt 0:06:12]} Rc7 {[%emt 0:02:25]} 28. Rxc7+ {[%emt 0:00:26]} Bxc7 {[%emt 0:00:01]} 29. b3 {[%emt 0:00:20]} Bd5 {[%emt 0:00:26]} 30. Kg2 {[%emt 0:07:50]} Rb8 {[%emt 0:05:49]} 31. Bd3 {[%emt 0:04:08]} Bc6 {[%emt 0:00:57]} 32. Re7+ {[%emt 0:05:27]} Kxe7 {[%emt 0:00:01]} 33. Nxc6+ {[%emt 0:00:15]} Kd6 {[%emt 0:00:10]} 34. Nxb8 {[%emt 0:00:12]} Bxb8 {[%emt 0:00:01]} 35. Bxb5 {[%emt 0:00:34]} Kc5 {[%emt 0:02:07]} 36. Be8 {[%emt 0:01:00]} Be5 {[%emt 0:01:08]} 37. c4 {[%emt 0:03:52]} f6 {[%emt 0:03:12]} 38. f4 {[%emt 0:01:52]} Bc3 {[%emt 0:02:07]} 39. Kf3 {[%emt 0:00:13]} Kd4 {[%emt 0:00:55]} 40. Kg4 {[%emt 0:06:38]} Ke4 {[%emt 0:03:30]} 41. Bc6+ {[%emt 0:34:40]} Ke3 {[%emt 0:31:14]} 42. h4 {[%emt 0:00:00]} Be1 {[%emt 0:00:00]} 43. Bd5 {[%emt 0:00:00]} Kd4 {[%emt 0:00:00]} 44. Bc6 $2 {[%emt 0:00:00]} ({White should play} 44. Bf7 $18) 44... Ke3 $1 {[%emt 0:00:00]} 45. Kh3 {[%emt 0:00:00]} Kd4 {[%emt 0:00:00]} 46. Be8 {[%emt 0:00:00]} Ke4 {[%emt 0:00:00]} 47. h5 {[%emt 0:00:00]} (47. Bf7 $18) 47... g5 $2 {[%emt 0:00:00] [#]} (47... gxh5 $16 {is tougher.} 48. Bxh5 Kd4) 48. Bg6+ $1 {[%emt 0:01:34]} Kf3 {[%emt 0:00:00]} 49. g4 $4 {[%emt 0:03:53]} (49. fxg5 $18 fxg5 50. Bxh7 g4+ 51. Kh4) 49... h6 $16 {[%emt 0:00:00]} (49... hxg6 {mates} 50. hxg6 f5 51. Kh2 Bc3 52. Kg1 fxg4 53. g7 Bxg7 54. Kf1 Bc3 55. Kg1 g3 56. Kh1 Bd4 57. f5 g2+ 58. Kh2 g1=Q+ 59. Kh3 Qh1#) 50. f5 {[%emt 0:01:08]} Bb4 {[%emt 0:00:00]} 51. Be8 {[%emt 0:00:16]} Kf4 {[%emt 0:00:00]} 52. Bc6 {[%emt 0:00:13]} Bc5 {[%emt 0:00:00]} 53. Bg2 {[%emt 0:01:10]} Bb4 {[%emt 0:00:33]} 54. Bf1 {[%emt 0:00:21]} Kf3 {[%emt 0:00:44]} 55. Bd3 {[%emt 0:00:42]} Bd6 {[%emt 0:01:05]} 56. Bc2 {[%emt 0:00:14]} Kf4 {[%emt 0:01:20]} 57. Bd1 {[%emt 0:00:10]} Ke4 {[%emt 0:02:17]} 58. Kg2 {[%emt 0:00:09]} Ke3 {[%emt 0:00:05]} 59. Kf1 {[%emt 0:00:18]} Kd2 {[%emt 0:00:23]} 60. Bf3 {[%emt 0:00:15]} Ke3 {[%emt 0:00:48]} 61. Be2 {[%emt 0:00:15]} Bb4 {[%emt 0:00:23]} 62. c5 {[%emt 0:01:33]} Bxc5 {[%emt 0:00:41]} 63. Ke1 {[%emt 0:00:12]} Bb4+ {[%emt 0:00:51]} 64. Kd1 {[%emt 0:02:47]} Bd2 {[%emt 0:00:55]} 65. Bc4 {[%emt 0:00:27]} Bb4 {[%emt 0:00:30]} 66. Be2 {[%emt 0:00:38]} Bd2 {[%emt 0:00:05]} 1/2-1/2

[Event "DFMMLV 2019"]
[Site "Braunfels"]
[Date "2019.06.23"]
[Round "5.30"]
[White "Schulz, Theresa Charlotte"]
[Black "Hiebsch, Catalina"]
[Result "1-0"]
[ECO "C44"]
[WhiteElo "1603"]
[BlackElo "1760"]
[Annotator "NA"]
[PlyCount "87"]
[EventDate "2019.06.20"]
[EventType "team-tourn"]
[EventCountry "GER"]
[SourceTitle "playchess.com"]
[Source "ChessBase"]
[SourceQuality "1"]
[WhiteTeam "Thueringen"]
[BlackTeam "NRW"]
[TimeControl "40/5400+30:1800+30"]

1. e4 {[%emt 0:00:00]} e5 {[%emt 0:00:00]} 2. Nf3 {[%emt 0:00:00]} Nc6 {[%emt 0:00:00]} 3. d4 {[%emt 0:00:00]} exd4 {[%emt 0:00:24]} 4. Bc4 {[%emt 0:00:00]} Nf6 {[%emt 0:00:36]} 5. e5 {[%emt 0:00:05]} d5 {[%emt 0:00:28]} 6. Bb5 {[%emt 0:00:08]} Nd7 {[%emt 0:00:22]} 7. O-O {[%emt 0:00:09]} Be7 {[%emt 0:00:18]} 8. Bxc6 bxc6 {[%emt 0:00:11]} 9. Nxd4 {[%emt 0:02:41]} Nb8 {[%emt 0:00:55]} 10. Bf4 {[%emt 0:03:16]} O-O {[%emt 0:03:38]} 11. Nd2 {[%emt 0:04:37]} c5 {[%emt 0:01:51]} 12. N4f3 {[%emt 0:14:31]} Be6 {[%emt 0:06:07]} 13. h3 {[%emt 0:00:33]} Nd7 {[%emt 0:04:55]} 14. Nb3 {[%emt 0:02:49]} Nb6 {[%emt 0:06:06]} 15. Nfd2 {[%emt 0:05:36]} a5 {[%emt 0:04:26]} 16. c3 {[%emt 0:07:01]} a4 {[%emt 0:04:09]} 17. Nc1 {[%emt 0:00:09]} c6 {[%emt 0:05:51]} 18. Re1 {[%emt 0:11:46]} Qd7 {[%emt 0:08:07]} 19. Bg3 {[%emt 0:12:41]} d4 {[%emt 0:08:18]} 20. Nf3 {[%emt 0:05:47]} Rfd8 {[%emt 0:04:26]} 21. Ne2 {[%emt 0:03:43]} d3 {[%emt 0:01:52]} 22. Nf4 {[%emt 0:00:21]} Nc4 {[%emt 0:06:16]} 23. Nxe6 {[%emt 0:03:18]} fxe6 {[%emt 0:03:05]} 24. Rb1 {[%emt 0:03:39]} Rab8 {[%emt 0:02:02]} 25. b3 {[%emt 0:01:05]} Na3 {[%emt 0:01:53]} 26. Rb2 {[%emt 0:02:40]} c4 {[%emt 0:08:22]} 27. Nd2 {[%emt 0:04:42]} cxb3 {[%emt 0:06:24]} 28. axb3 {[%emt 0:00:42]} Nc2 {[%emt 0:02:14]} 29. Re4 {[%emt 0:03:35]} a3 {[%emt 0:00:49]} 30. Ra2 {[%emt 0:00:05]} Qd5 {[%emt 0:00:57]} 31. c4 {[%emt 0:01:49]} Qd7 {[%emt 0:01:34]} 32. Bh4 {[%emt 0:02:08]} Bxh4 {[%emt 0:01:56]} 33. Rxh4 {[%emt 0:00:06]} Qe7 {[%emt 0:00:52]} 34. Qh5 {[%emt 0:03:15]} g6 {[%emt 0:00:43]} 35. Qh6 {[%emt 0:00:09]} Nd4 {[%emt 0:01:41]} 36. Ne4 {[%emt 0:01:19]} Rb7 {[%emt 0:01:59]} 37. Nf6+ {[%emt 0:01:55]} Kh8 {[%emt 0:00:04]} 38. Qxg6 {[%emt 0:00:11]} Ne2+ {[%emt 0:02:10]} 39. Kf1 {[%emt 0:00:19]} Nc3 {[%emt 0:01:11]} 40. Rxh7+ {[%emt 0:01:46]} Qxh7 {[%emt 0:00:11]} 41. Nxh7 {[%emt 0:30:22]} Rxb3 {[%emt 0:03:33]} 42. Kg1 {[%emt 0:00:00]} Ne2+ {[%emt 0:12:52]} 43. Kh2 {[%emt 0:00:00]} Nc1 {[%emt 0:03:02]} 44. Nf6 {[%emt 0:00:00]} 1-0

[Event "DFMMLV 2019"]
[Site "Braunfels"]
[Date "2019.06.23"]
[Round "5.31"]
[White "Hoerhold, Karola"]
[Black "Neumann, Tina"]
[Result "0-1"]
[ECO "B01"]
[WhiteElo "1727"]
[BlackElo "1525"]
[Annotator "NA"]
[PlyCount "147"]
[EventDate "2019.06.20"]
[EventType "team-tourn"]
[EventCountry "GER"]
[SourceTitle "playchess.com"]
[Source "ChessBase"]
[SourceQuality "1"]
[WhiteTeam "NRW"]
[BlackTeam "Thueringen"]
[TimeControl "40/5400+30:1800+30"]

1. e4 {[%emt 0:00:00]} d5 {[%emt 0:00:12]} 2. exd5 {[%emt 0:00:00]} Qxd5 {[%emt 0:00:05]} 3. Nc3 {[%emt 0:00:00]} Qa5 {[%emt 0:00:04]} 4. Nf3 {[%emt 0:00:04]} Nf6 {[%emt 0:00:47]} 5. b4 {[%emt 0:00:23]} Qxb4 {[%emt 0:11:24]} 6. a4 {[%emt 0:00:06]} c6 {[%emt 0:12:51]} 7. Bd3 {[%emt 0:00:30]} Qa5 {[%emt 0:19:45]} 8. O-O {[%emt 0:04:17]} Bg4 {[%emt 0:04:03]} 9. h3 {[%emt 0:04:22]} Bh5 {[%emt 0:00:59]} 10. Rb1 {[%emt 0:02:10]} Qc7 {[%emt 0:01:49]} 11. Re1 {[%emt 0:05:30]} e6 {[%emt 0:01:52]} 12. Bf1 {[%emt 0:00:42]} Bc5 {[%emt 0:09:54]} 13. Bb2 {[%emt 0:07:08]} Qg3 {[%emt 0:14:01]} 14. d4 {[%emt 0:11:43]} Bxf3 {[%emt 0:00:35]} 15. fxg3 {[%emt 0:00:09]} Bxd1 {[%emt 0:00:10]} 16. Nxd1 {[%emt 0:00:06]} Bd6 {[%emt 0:01:10]} 17. Re3 {[%emt 0:06:17]} O-O {[%emt 0:01:24]} 18. c4 {[%emt 0:03:00]} c5 {[%emt 0:02:12]} 19. d5 {[%emt 0:05:33]} exd5 {[%emt 0:01:09]} 20. cxd5 {[%emt 0:00:08]} b6 {[%emt 0:04:39]} 21. Nc3 {[%emt 0:03:54]} c4 {[%emt 0:04:13]} 22. Kh1 {[%emt 0:05:35]} Bb4 {[%emt 0:03:28]} 23. Bxc4 {[%emt 0:00:29]} Rc8 {[%emt 0:00:32]} 24. Bb3 {[%emt 0:04:28]} Nbd7 {[%emt 0:01:17]} 25. Nb5 {[%emt 0:02:16]} a6 {[%emt 0:00:41]} 26. Nd4 {[%emt 0:05:12]} Nc5 {[%emt 0:02:06]} 27. Nc6 {[%emt 0:01:26]} Nxb3 {[%emt 0:00:18]} 28. Nxb4 {[%emt 0:01:10]} Nd2 {[%emt 0:00:46]} 29. Rd1 {[%emt 0:03:45]} Nc4 {[%emt 0:00:26]} 30. Re2 {[%emt 0:00:18]} Nxb2 {[%emt 0:00:48]} 31. Rxb2 {[%emt 0:00:18]} Rd8 {[%emt 0:01:06]} 32. Rbd2 {[%emt 0:03:35]} Ne4 {[%emt 0:00:18]} 33. Rb2 {[%emt 0:01:21]} Nc3 {[%emt 0:00:35]} 34. Rd4 {[%emt 0:01:52]} a5 {[%emt 0:00:42]} 35. Nc6 {[%emt 0:00:31]} Rd6 {[%emt 0:00:34]} 36. Rbd2 {[%emt 0:01:46]} Kf8 {[%emt 0:00:26]} 37. R2d3 {[%emt 0:00:47]} Ne2 {[%emt 0:00:20]} 38. Re4 {[%emt 0:02:00]} Rxd5 {[%emt 0:00:14]} 39. Rxd5 {[%emt 0:01:03]} Nxg3+ {[%emt 0:00:01]} 40. Kg1 {[%emt 0:00:39]} Nxe4 {[%emt 0:00:02]} 41. Ne5 {[%emt 0:32:03]} Ke8 {[%emt 0:31:31]} 42. Nc4 {[%emt 0:01:21]} Nf6 {[%emt 0:00:00]} 43. Re5+ {[%emt 0:00:00]} Kd8 {[%emt 0:00:00]} 44. Nxb6 {[%emt 0:00:00]} Rb8 {[%emt 0:00:00]} 45. Rb5 {[%emt 0:00:00]} Nd7 {[%emt 0:00:00]} 46. Nc4 {[%emt 0:00:00]} Rxb5 {[%emt 0:00:00]} 47. axb5 {[%emt 0:00:00]} a4 {[%emt 0:00:00]} 48. Kf2 {[%emt 0:00:00]} Kc7 {[%emt 0:00:00]} 49. Ke2 {[%emt 0:00:00]} f6 {[%emt 0:00:00]} 50. Kd1 {[%emt 0:00:00]} Ne5 {[%emt 0:00:00]} 51. Na3 {[%emt 0:00:00]} Kb6 {[%emt 0:00:00]} 52. Kc2 {[%emt 0:00:00]} Kc5 {[%emt 0:00:00]} 53. Kc3 {[%emt 0:00:00]} Nd7 {[%emt 0:00:00]} 54. g4 {[%emt 0:00:00]} g6 {[%emt 0:00:47]} 55. Kb2 {[%emt 0:00:00]} Nb6 {[%emt 0:01:45]} 56. Kc3 {[%emt 0:06:43]} Nd5+ {[%emt 0:00:47]} 57. Kb2 {[%emt 0:00:33]} Kb4 {[%emt 0:02:22]} 58. h4 {[%emt 0:04:15]} f5 {[%emt 0:00:30]} 59. gxf5 {[%emt 0:00:17]} gxf5 {[%emt 0:00:15]} 60. Nc2+ {[%emt 0:00:20]} Kc5 {[%emt 0:00:46]} 61. Ka3 {[%emt 0:01:44]} f4 {[%emt 0:00:46]} 62. Kxa4 {[%emt 0:04:20]} Nc3+ {[%emt 0:01:12]} 63. Kb3 {[%emt 0:00:24]} Nxb5 {[%emt 0:00:30]} 64. Ne1 {[%emt 0:00:22]} Kd4 {[%emt 0:00:38]} 65. Kc2 {[%emt 0:00:33]} Nd6 {[%emt 0:00:35]} 66. Kd2 {[%emt 0:01:11]} Ke4 {[%emt 0:00:39]} 67. Ke2 {[%emt 0:00:22]} Nf5 {[%emt 0:00:10]} 68. Nf3 {[%emt 0:00:48]} Nd4+ {[%emt 0:01:10]} 69. Nxd4 {[%emt 0:00:42]} Kxd4 {[%emt 0:00:01]} 70. Kf2 {[%emt 0:00:43]} Ke4 {[%emt 0:00:48]} 71. Ke2 {[%emt 0:01:47]} f3+ {[%emt 0:01:24]} 72. Kf1 {[%emt 0:00:55]} Ke3 {[%emt 0:00:28]} 73. h5 h6 74. Ke1 0-1

[Event "DFMMLV 2019"]
[Site "Braunfels"]
[Date "2019.06.23"]
[Round "5.32"]
[White "Meyer, Jessica"]
[Black "Haehnel, Andrea"]
[Result "1/2-1/2"]
[ECO "A00"]
[WhiteElo "1344"]
[BlackElo "1746"]
[Annotator "NA"]
[PlyCount "143"]
[EventDate "2019.06.20"]
[EventType "team-tourn"]
[EventCountry "GER"]
[SourceTitle "playchess.com"]
[Source "ChessBase"]
[SourceQuality "1"]
[WhiteTeam "Thueringen"]
[BlackTeam "NRW"]
[TimeControl "40/5400+30:1800+30"]

1. a3 {[%emt 0:00:00]} g6 {[%emt 0:00:00]} 2. e3 {[%emt 0:01:16]} Bg7 {[%emt 0:00:00]} 3. Nf3 {[%emt 0:01:26]} b6 {[%emt 0:00:41]} 4. d4 {[%emt 0:02:45]} Bb7 {[%emt 0:00:05]} 5. c3 {[%emt 0:02:27]} Nf6 {[%emt 0:00:06]} 6. Nbd2 {[%emt 0:01:11]} d5 {[%emt 0:00:59]} 7. Bd3 {[%emt 0:03:07]} Nbd7 {[%emt 0:00:21]} 8. Qc2 {[%emt 0:01:58]} c5 {[%emt 0:01:47]} 9. b3 {[%emt 0:02:06]} O-O {[%emt 0:00:56]} 10. Bb2 {[%emt 0:00:42]} Rc8 {[%emt 0:03:24]} 11. Rc1 {[%emt 0:06:10]} cxd4 {[%emt 0:01:30]} 12. exd4 {[%emt 0:03:25]} Re8 {[%emt 0:01:14]} 13. O-O {[%emt 0:03:49]} a6 {[%emt 0:03:17]} 14. Rfe1 {[%emt 0:02:18]} Qc7 {[%emt 0:01:26]} 15. Qb1 {[%emt 0:01:39]} Qb8 {[%emt 0:02:52]} 16. Re2 {[%emt 0:14:01]} Nh5 {[%emt 0:05:34]} 17. g3 {[%emt 0:12:14]} e5 {[%emt 0:08:16]} 18. dxe5 {[%emt 0:02:49]} Nxe5 {[%emt 0:00:12]} 19. Nxe5 {[%emt 0:03:56]} Rxe5 {[%emt 0:00:45]} 20. Nf3 {[%emt 0:06:58]} Rxe2 {[%emt 0:01:42]} 21. Bxe2 {[%emt 0:00:25]} Nf6 {[%emt 0:05:34]} 22. Nd4 {[%emt 0:08:25]} Qd6 {[%emt 0:14:01]} 23. a4 {[%emt 0:04:29]} h5 {[%emt 0:00:18]} 24. h4 {[%emt 0:03:50]} Bh6 {[%emt 0:00:27]} 25. Rd1 {[%emt 0:02:10]} Ne4 {[%emt 0:00:13]} 26. Qd3 {[%emt 0:03:33]} Bg7 {[%emt 0:05:14]} 27. Rc1 {[%emt 0:01:06]} Re8 {[%emt 0:00:47]} 28. Kf1 {[%emt 0:01:03]} Bc8 {[%emt 0:00:34]} 29. Kg2 {[%emt 0:00:24]} Nc5 {[%emt 0:01:09]} 30. Qc2 {[%emt 0:00:59]} Bxd4 {[%emt 0:04:42]} 31. cxd4 {[%emt 0:01:13]} Ne4 {[%emt 0:07:31]} 32. Bf3 {[%emt 0:00:33]} Bf5 {[%emt 0:08:28]} 33. Qc6 {[%emt 0:00:23]} Qxc6 {[%emt 0:00:08]} 34. Rxc6 {[%emt 0:00:05]} Re6 {[%emt 0:00:06]} 35. Rc8+ {[%emt 0:01:23]} Kg7 {[%emt 0:00:06]} 36. Bxe4 {[%emt 0:00:53]} Rxe4 {[%emt 0:02:10]} 37. Rc6 {[%emt 0:01:57]} Re2 {[%emt 0:00:29]} 38. Ba1 {[%emt 0:00:27]} Re1 {[%emt 0:02:11]} 39. Bb2 {[%emt 0:00:12]} Be4+ {[%emt 0:00:28]} 40. f3 {[%emt 0:00:46]} Re2+ {[%emt 0:00:43]} 41. Kf1 {[%emt 0:02:26]} Bxf3 {[%emt 0:00:37]} 42. Ba3 {[%emt 0:06:18]} Re6 {[%emt 0:05:52]} 43. Bd6 {[%emt 0:04:58]} b5 {[%emt 0:02:49]} 44. Rxa6 {[%emt 0:03:18]} bxa4 {[%emt 0:00:35]} 45. Be5+ {[%emt 0:01:25]} Kh7 {[%emt 0:01:48]} 46. Rxa4 {[%emt 0:02:24]} f6 {[%emt 0:07:52]} 47. Ra7+ {[%emt 0:04:06]} Kg8 {[%emt 0:05:33]} 48. Bc7 {[%emt 0:03:15]} Be2+ {[%emt 0:02:42]} 49. Kf2 {[%emt 0:01:07]} Bd3 {[%emt 0:00:41]} 50. Ra2 {[%emt 0:01:22]} Rc6 {[%emt 0:02:57]} 51. Bf4 {[%emt 0:01:13]} Rb6 {[%emt 0:02:28]} 52. Rb2 {[%emt 0:01:16]} Kf7 {[%emt 0:00:52]} 53. Kf3 {[%emt 0:01:24]} Ke6 {[%emt 0:01:03]} 54. g4 {[%emt 0:01:19]} Rb4 {[%emt 0:03:03]} 55. Be3 {[%emt 0:00:51]} Bc4 {[%emt 0:00:48]} 56. Bd2 {[%emt 0:01:48]} Rxb3+ {[%emt 0:00:47]} 57. Rxb3 {[%emt 0:01:04]} Bxb3 {[%emt 0:00:33]} 58. Kf4 {[%emt 0:00:46]} Bd1 {[%emt 0:01:18]} 59. gxh5 {[%emt 0:00:00]} Bxh5 {[%emt 0:00:00]} 60. Be3 {[%emt 0:00:00]} Be2 {[%emt 0:00:00]} 61. Bd2 {[%emt 0:00:00]} Bd3 {[%emt 0:00:00]} 62. Be3 {[%emt 0:00:00]} Kd6 {[%emt 0:00:00]} 63. Bd2 {[%emt 0:00:00]} Kc6 {[%emt 0:00:00]} 64. Bb4 {[%emt 0:00:00]} Kd7 {[%emt 0:01:28]} 65. Bd2 {[%emt 0:00:00]} Ke7 {[%emt 0:00:04]} 66. Bb4+ {[%emt 0:00:00]} Kf7 {[%emt 0:00:05]} 67. Bd2 {[%emt 0:00:00]} Kg7 {[%emt 0:00:04]} 68. Be3 {[%emt 0:00:00]} Be2 {[%emt 0:00:43]} 69. Bd2 {[%emt 0:00:00]} Bd1 {[%emt 0:00:18]} 70. Bc1 {[%emt 0:00:00]} Kh6 {[%emt 0:01:28]} 71. Kg3+ {[%emt 0:00:11]} Kh5 {[%emt 0:00:22]} 72. Bd2 {[%emt 0:00:31]} 1/2-1/2